bitfinex/quotes_ETHUSD_20241207
["timestamp","ask_amount","ask_price","bid_price","bid_amount"]
[1733536301765,2.84064658,3987.8,3987.3,0.9317]
[1733536302083,0.894,3988.1,3986.6,0.9317]
[1733536302084,1.08529658,3987.5,3986.6,0.9317]
[1733536302241,0.02839329,3987.4,3986.6,0.9317]
[1733536302442,1.78393329,3987.4,3986.6,0.9317]
[1733536302955,0.02839329,3987.4,3986.6,0.9317]
[1733536303175,0.02839329,3987.5,3986.6,0.9317]
[1733536303446,8.94,3987.0,3986.2,0.9317]
[1733536303668,8.94,3986.8,3986.2,0.9317]
[1733536310895,8.94,3986.9,3986.2,0.9317]
[1733536312757,0.89519329,3986.8,3985.5,1.4959]
[1733536312962,0.89519329,3986.8,3985.6,0.52689]
[1733536313376,1.75589,3986.6,3985.5,0.9459]
[1733536313573,0.29350162,3986.5,3985.5,0.9459]
[1733536313791,9.23350162,3986.5,3985.5,0.9459]
[1733536313972,9.20510833,3986.5,3985.5,0.9459]
[1733536314469,0.02839329,3986.4,3985.5,0.9459]
[1733536314674,8.94,3986.5,3985.6,0.52689]
[1733536314885,0.02839329,3986.4,3985.6,0.52689]
[1733536316269,0.02839329,3986.4,3985.5,0.9459]
[1733536316777,8.96839329,3986.4,3985.5,1.4728]
[1733536317110,0.8668,3986.8,3985.5,0.9459]
[1733536317111,2.65284933,3986.3,3985.5,0.9459]
[1733536317280,0.02839329,3986.2,3985.5,0.9459]
[1733536318276,0.02839329,3986.2,3984.9,0.9459]
[1733536318277,0.8668,3986.1,3984.9,0.9459]
[1733536318480,0.02839329,3986.0,3984.9,0.9459]
[1733536318696,0.20759655,3986.0,3984.9,0.9459]
[1733536318915,0.17920326,3986.0,3984.9,1.47288]
[1733536319083,1.96374655,3986.0,3984.9,0.9459]
[1733536319408,0.20759655,3986.0,3984.9,0.9459]
[1733536319613,1.75634,3985.6,3984.9,0.9459]
[1733536319776,8.94,3985.4,3984.9,0.9459]
[1733536319967,8.94,3985.4,3983.8,2.88022723]
[1733536319968,8.94,3985.4,3984.1,0.65165614]
[1733536320169,8.94,3985.4,3984.1,0.52708]
[1733536320170,2.65166329,3985.3,3984.1,0.52708]
[1733536320381,2.65166329,3985.3,3983.9,0.9459]
[1733536320382,0.8668,3985.3,3983.9,0.9459]
[1733536320581,0.8668,3985.3,3984.1,0.52708]
[1733536320805,0.8668,3985.3,3984.2,0.147298]
[1733536321175,0.8668,3985.3,3983.9,0.9459]
[1733536321378,1.75655,3985.1,3983.9,0.9459]
[1733536321674,0.8668,3984.9,3983.8,0.52712]
[1733536321875,0.8668,3984.4,3982.6,0.9459]
[1733536322074,0.8668,3984.4,3982.7,0.52727]
[1733536322075,8.94,3984.0,3982.7,0.52727]
[1733536322327,1.75708,3983.9,3982.7,0.147317]
[1733536322619,9.51210976,3984.0,3982.7,0.147317]
[1733536323113,9.51210976,3984.0,3982.8,0.52725]
[1733536323811,0.02839329,3983.9,3982.8,0.52725]
[1733536324250,0.02839329,3983.9,3982.7,0.147317]
[1733536324251,9.51210976,3984.0,3982.7,0.147317]
[1733536324418,9.51210976,3984.0,3982.9,0.52725]
[1733536324629,1.12690598,3983.9,3982.9,0.52725]
[1733536324937,1.12690598,3983.9,3983.0,0.52723]
[1733536325151,1.12690598,3983.9,3983.1,3.0]
[1733536325310,1.12690598,3983.9,3983.1,0.52722]
[1733536325511,1.12690598,3983.9,3982.8,0.52725]
[1733536325735,8.94,3983.8,3982.7,0.147317]
[1733536325920,8.94,3983.8,3982.9,0.52725]
[1733536326544,8.94,3983.8,3983.0,0.52723]
[1733536326716,10.00390157,3983.8,3983.0,0.52723]
[1733536326914,10.00390157,3983.8,3982.7,3.147317]
[1733536327121,10.00390157,3983.8,3983.1,0.52722]
[1733536327326,10.00390157,3983.8,3982.7,3.147317]
[1733536327505,8.94,3983.8,3983.3,0.52719]
[1733536327705,8.94,3984.3,3983.1,3.9459]
[1733536327947,8.94,3984.3,3983.2,0.55]
[1733536328246,0.02839329,3984.2,3983.2,0.55]
[1733536328410,8.94,3984.3,3983.6,0.52716]
[1733536328605,9.92068,3984.3,3983.7,0.52714]
[1733536328811,8.94,3984.3,3983.5,2.35310723]
[1733536329020,8.94,3984.7,3984.2,0.52707]
[1733536329335,8.94,3984.7,3983.6,3.9459]
[1733536329336,8.94,3984.7,3984.3,0.52706]
[1733536329724,8.94,3984.7,3984.5,0.52703]
[1733536330053,1.82686814,3985.1,3984.8,0.527]
[1733536330054,8.94,3985.0,3984.8,0.527]
[1733536330408,0.96006814,3985.1,3984.8,0.527]
[1733536330605,0.96006814,3985.1,3984.9,0.52698]
[1733536331732,0.96006814,3985.1,3985.0,0.9267]
[1733536331931,0.96006814,3985.1,3985.0,1.4767]
[1733536332225,0.96006814,3985.1,3985.0,4.4767]
[1733536332762,8.94,3986.3,3985.0,4.4767]
[1733536332926,8.94,3986.6,3985.4,3.0]
[1733536333124,0.9197,3986.8,3985.4,3.0]
[1733536333125,8.94,3986.7,3986.3,0.5268]
[1733536333423,8.94,3986.7,3985.8,1.45356]
[1733536333629,8.94,3986.7,3986.5,0.52677]
[1733536333853,0.9197,3987.1,3986.6,0.52675]
[1733536334577,8.94,3987.4,3986.1,2.35310723]
[1733536334867,0.9197,3987.5,3987.2,0.52668]
[1733536334868,8.94,3987.5,3987.2,0.52668]
[1733536335967,0.02839329,3987.4,3986.7,0.52674]
[1733536336266,8.94,3987.3,3986.2,3.9267]
[1733536336470,8.94,3987.3,3986.6,0.52676]
[1733536337045,8.94,3987.3,3986.8,0.52673]
[1733536337245,9.834,3987.3,3986.8,0.52673]
[1733536338759,9.834,3987.3,3986.2,3.9267]
[1733536338760,0.02839329,3987.2,3986.2,3.9267]
[1733536338964,0.9197,3987.1,3985.8,0.9267]
[1733536339173,8.94,3986.9,3985.4,0.9267]
[1733536339387,9.8597,3986.7,3985.4,0.9267]
[1733536339588,0.02839329,3986.6,3985.4,0.9267]
[1733536339894,0.02839329,3986.6,3985.4,0.52691]
[1733536340543,8.94,3986.5,3985.1,0.52696]
[1733536340750,8.94,3986.3,3985.1,0.52696]
[1733536341048,8.94,3986.3,3985.2,0.52694]
[1733536342576,8.94,3986.3,3985.4,0.52691]
[1733536343278,8.94,3986.3,3985.4,0.52692]
[1733536343491,8.94,3986.3,3985.4,3.0]
[1733536343648,8.94,3986.3,3985.3,2.35310723]
[1733536343649,0.02839329,3986.2,3985.7,0.52687]
[1733536343840,0.02839329,3986.5,3985.7,0.52687]
[1733536344049,0.98880933,3986.4,3985.7,0.52687]
[1733536344245,0.02839329,3986.3,3985.3,5.35310723]
[1733536344567,0.02839329,3986.3,3985.3,3.0]
[1733536344773,0.98880933,3986.4,3985.3,0.52693]
[1733536345148,8.94,3986.3,3984.0,0.5271]
[1733536345349,8.94,3986.3,3980.7,1.28440895]
[1733536345350,2.67593,3985.9,3984.6,0.52702]
[1733536345660,0.02839329,3985.8,3984.6,0.52702]
[1733536346160,8.94,3985.7,3984.4,0.52705]
[1733536346485,8.94,3985.7,3983.9,0.52712]
[1733536346486,0.94809329,3985.6,3983.9,3.0]
[1733536346688,8.94,3985.5,3984.6,0.52702]
[1733536346855,0.98880933,3985.4,3984.6,0.52702]
[1733536347059,0.98880933,3985.4,3984.7,0.52701]
[1733536347252,0.98880933,3985.4,3984.9,0.52698]
[1733536347562,0.98880933,3985.4,3984.5,0.9267]
[1733536347762,0.98880933,3985.4,3985.0,0.52697]
[1733536347990,8.94,3985.1,3984.1,0.52709]
[1733536348192,8.94,3985.1,3983.2,0.52721]
[1733536348193,0.9197,3985.0,3983.2,0.52721]
[1733536348350,0.94809329,3985.0,3983.8,0.52713]
[1733536349352,0.9197,3985.0,3983.8,0.52712]
[1733536349758,0.9197,3985.0,3983.5,0.52717]
[1733536349996,1.01436329,3984.9,3984.2,0.52707]
[1733536350877,1.01134456,3984.9,3984.2,0.52707]
[1733536351792,1.01134456,3984.9,3983.9,0.52711]
[1733536351994,1.01134456,3984.9,3984.0,0.5271]
[1733536352226,0.98295127,3984.9,3984.0,0.5271]
[1733536352362,1.08426513,3984.8,3984.0,0.5271]
[1733536352861,9.8597,3985.0,3983.8,3.55]
[1733536353292,0.9197,3985.0,3984.4,0.52704]
[1733536353494,0.9197,3985.0,3984.2,3.0]
[1733536353689,0.9197,3985.0,3984.6,0.52702]
[1733536353889,0.9308,3985.4,3984.3,0.8673]
[1733536354108,0.9308,3985.4,3984.8,0.52699]
[1733536355220,0.02839329,3985.3,3984.8,0.52699]
[1733536356067,0.9308,3985.4,3984.8,0.52699]
[1733536357167,0.9308,3985.4,3984.9,0.52698]
[1733536357373,0.9308,3985.4,3984.4,3.62204072]
[1733536357374,0.9308,3985.4,3984.7,0.52701]
[1733536357570,0.02839329,3985.3,3984.6,0.52702]
[1733536357791,0.02839329,3985.3,3984.4,0.62204072]
[1733536358109,0.02839329,3985.3,3984.7,0.527]
[1733536358415,0.9308,3985.2,3984.6,0.52702]
[1733536360373,0.9308,3985.2,3984.4,0.52705]
[1733536360574,0.9308,3985.2,3984.7,0.52701]
[1733536361640,0.9308,3985.2,3984.8,0.52699]
[1733536362944,0.9308,3985.2,3984.3,3.8673]
[1733536363111,0.9308,3985.2,3984.2,0.625]
[1733536363305,0.02839329,3985.1,3984.2,0.625]
[1733536363505,0.02839329,3985.1,3984.4,0.52705]
[1733536363700,0.9308,3985.2,3984.5,0.52703]
[1733536364102,0.9308,3985.2,3984.2,0.625]
[1733536364444,0.9308,3985.2,3984.4,0.52705]
[1733536364739,0.9308,3985.2,3984.6,0.52702]
[1733536365655,0.9308,3985.2,3984.2,0.625]
[1733536365656,0.9308,3985.2,3984.8,0.527]
[1733536367750,0.9308,3985.2,3984.9,0.52698]
[1733536368611,0.9308,3985.2,3985.0,0.52696]
[1733536368846,8.94,3985.6,3984.6,0.8673]
[1733536369044,8.94,3985.6,3984.9,0.52697]
[1733536369245,9.92708,3985.6,3984.9,0.52697]
[1733536369629,9.92708,3985.6,3985.0,0.52697]
[1733536371151,1.75652,3985.2,3984.2,0.625]
[1733536371359,0.8947,3984.8,3984.2,0.625]
[1733536371516,0.265135,3984.7,3984.2,0.625]
[1733536371718,0.8947,3984.8,3984.2,0.625]
[1733536372014,0.8947,3984.8,3984.4,0.52705]
[1733536372780,0.02839329,3984.7,3984.4,0.52705]
[1733536373047,0.8947,3984.8,3984.4,0.52705]
[1733536373249,0.8947,3984.8,3984.2,0.625]
[1733536373615,0.8947,3984.8,3984.6,0.52702]
[1733536375445,0.8947,3985.3,3984.8,0.527]
[1733536375757,0.98347,3985.2,3984.4,0.52705]
[1733536376054,0.98347,3985.2,3984.7,0.527]
[1733536376254,0.98347,3985.2,3984.2,0.625]
[1733536376255,0.98347,3985.2,3984.9,0.52698]
[1733536376762,0.8947,3985.3,3985.2,0.52694]
[1733536376949,9.8347,3986.0,3985.4,0.52692]
[1733536377561,8.94,3985.8,3984.4,0.52705]
[1733536378426,8.94,3985.9,3985.5,0.5269]
[1733536378664,0.98347,3985.8,3985.5,0.5269]
[1733536380739,0.98347,3985.8,3985.0,0.52697]
[1733536381058,8.94,3985.9,3985.8,0.52687]
[1733536381540,0.9328,3986.4,3986.3,0.5268]
[1733536381739,9.8728,3986.8,3985.7,0.8829]
[1733536382159,9.8728,3986.8,3986.7,0.52675]
[1733536382329,9.8728,3987.3,3986.7,0.52675]
[1733536382665,10.02786615,3987.2,3986.4,1.40968]
[1733536382870,0.9328,3986.9,3985.4,1.40981]
[1733536383028,8.94,3986.6,3985.1,3.8829]
[1733536383232,0.9328,3986.4,3985.6,0.52688]
[1733536383533,8.94,3986.2,3985.3,0.52693]
[1733536383734,0.9328,3986.0,3985.3,0.52693]
[1733536383966,0.02839329,3985.9,3985.3,0.52693]
[1733536384175,8.96839329,3985.9,3985.1,0.52695]
[1733536384477,0.9328,3985.8,3985.1,0.52695]
[1733536384680,0.02839329,3985.7,3985.1,0.52695]
[1733536384838,0.99011933,3985.6,3985.1,0.52695]
[1733536385037,0.02839329,3985.5,3985.1,0.52695]
[1733536385742,0.99011933,3985.6,3985.1,0.52695]
[1733536386060,0.99011933,3985.6,3985.2,0.52694]
[1733536386946,8.94,3985.7,3985.5,0.5269]
[1733536387982,8.94,3985.7,3985.6,0.52689]
[1733536388337,1.03368371,3986.6,3985.2,0.8829]
[1733536388338,0.9328,3986.4,3985.2,0.8829]
[1733536388542,0.9328,3986.4,3986.3,0.5268]
[1733536389457,8.94,3986.6,3986.3,0.5268]
[1733536389657,8.94,3986.6,3985.9,0.8682]
[1733536389970,0.8889,3986.8,3986.0,0.52684]
[1733536390181,0.8889,3986.8,3986.5,0.52676]
[1733536390358,1.01128329,3986.7,3986.5,0.52676]
[1733536390677,1.01128329,3986.7,3986.6,0.52676]
[1733536390852,0.98289,3986.7,3986.6,0.52676]
[1733536392564,0.98289,3986.7,3985.9,0.8682]
[1733536392787,1.01128329,3986.7,3986.4,0.52679]
[1733536393102,0.19001833,3986.6,3986.4,0.52679]
[1733536393384,0.19001833,3986.6,3986.5,0.52677]
[1733536395353,0.8889,3987.1,3986.5,0.52677]
[1733536395664,0.8889,3987.1,3987.0,0.52671]
[1733536396869,0.8889,3987.1,3985.9,3.8682]
[1733536397050,0.02839329,3987.0,3986.8,0.52673]
[1733536397450,0.02839329,3987.0,3986.7,0.52674]
[1733536397763,0.02839329,3987.0,3986.8,0.52673]
[1733536397958,1.01412262,3987.0,3986.9,0.52672]
[1733536398286,0.98572933,3987.0,3986.9,0.52672]
[1733536399880,8.94,3987.2,3987.1,0.52669]
[1733536400891,9.8289,3987.4,3986.7,0.52675]
[1733536401118,9.8289,3987.4,3987.2,0.52668]
[1733536402001,9.8289,3987.4,3987.3,0.52667]
[1733536402618,1.00586145,3987.5,3987.4,0.52665]
[1733536403829,1.00586145,3987.5,3986.8,0.52673]
[1733536404007,0.02839329,3987.4,3987.2,0.52667]
[1733536404387,0.8889,3987.3,3986.9,0.52672]
[1733536404591,0.02839329,3987.2,3986.9,0.52672]
[1733536404790,0.02839329,3987.2,3987.0,0.52671]
[1733536405613,1.97521547,3987.3,3987.0,0.52671]
[1733536406111,0.8889,3987.3,3987.0,0.52671]
[1733536406731,0.8889,3987.3,3986.3,3.8682]
[1733536406889,0.91729329,3987.3,3986.9,0.52672]
[1733536408299,0.91729329,3987.3,3986.3,3.8682]
[1733536408528,1.10960876,3987.3,3986.3,3.8682]
[1733536408692,1.10960876,3987.3,3986.7,0.52674]
[1733536408893,1.10960876,3987.3,3986.8,0.52673]
[1733536409909,10.04960876,3987.3,3986.8,0.52673]
[1733536410116,10.02121547,3987.3,3986.8,0.52673]
[1733536410792,0.35360869,3987.2,3986.8,0.52673]
[1733536411043,10.02121547,3987.3,3986.3,4.39499]
[1733536411332,9.8289,3987.3,3987.1,0.52668]
[1733536412207,9.8289,3987.3,3987.1,0.47668]
[1733536412930,8.94,3987.2,3987.1,0.47668]
[1733536413536,8.94,3987.2,3986.9,0.52672]
[1733536413692,0.02839329,3987.1,3986.9,0.52672]
[1733536414402,10.02347614,3987.2,3987.0,0.5267]
[1733536416898,10.02347614,3987.2,3986.8,0.52673]
[1733536417132,10.02347614,3987.2,3986.5,0.52677]
[1733536417133,0.02839329,3987.1,3986.9,0.52672]
[1733536417497,10.02347614,3987.2,3986.9,0.52672]
[1733536417742,10.02347614,3987.2,3987.0,0.5267]
[1733536418628,1.09070761,3987.1,3986.5,0.52677]
[1733536418834,0.02839329,3987.0,3986.5,0.52677]
[1733536419123,8.94,3986.9,3986.5,0.52677]
[1733536419325,0.02839329,3986.8,3986.5,0.52677]
[1733536419641,8.96839329,3986.8,3986.0,0.8614]
[1733536419795,8.94,3986.8,3986.3,0.5268]
[1733536419996,0.02839329,3986.7,3986.3,0.5268]
[1733536420227,9.834,3986.8,3986.4,0.52678]
[1733536420640,0.02839329,3986.7,3986.4,0.52678]
[1733536421235,9.834,3986.8,3986.4,0.52678]
[1733536421402,0.02839329,3986.7,3986.4,0.52678]
[1733536421610,9.834,3986.8,3986.4,0.52678]
[1733536421936,9.834,3986.8,3986.0,1.38823]
[1733536422137,9.834,3986.8,3986.5,0.52676]
[1733536424733,9.834,3986.8,3986.0,1.38823]
[1733536424734,9.834,3986.8,3986.3,0.52679]
[1733536425041,8.94,3986.7,3986.0,0.8614]
[1733536425432,0.02839329,3986.6,3986.0,0.8614]
[1733536425740,0.02839329,3986.6,3986.2,0.5268]
[1733536426446,8.94,3986.4,3984.8,0.8614]
[1733536426747,0.78700078,3986.6,3984.8,0.8614]
[1733536426748,8.94,3986.1,3984.8,0.8614]
[1733536426909,0.8836,3985.9,3984.8,0.8614]
[1733536427253,0.8836,3985.9,3984.9,0.52698]
[1733536427254,8.96839329,3985.8,3984.9,0.52698]
[1733536427408,0.8836,3985.7,3984.3,0.52706]
[1733536427606,0.91199329,3985.7,3984.3,0.52706]
[1733536427808,0.98519933,3985.6,3984.3,0.52706]
[1733536428009,0.02839329,3985.5,3984.3,0.52706]
[1733536428544,0.98519933,3985.6,3984.9,0.52698]
[1733536429141,0.8836,3985.7,3984.8,0.527]
[1733536429318,8.94,3985.8,3985.5,0.5269]
[1733536429511,8.94,3985.8,3985.1,0.52695]
[1733536429817,8.94,3985.8,3985.6,0.52688]
[1733536430042,8.94,3985.8,3985.0,1.8614]
[1733536430241,8.94,3985.8,3985.7,0.52688]
[1733536430812,8.94,3985.8,3985.7,1.44808]
[1733536431040,8.94,3986.5,3986.4,0.52679]
[1733536431637,0.894,3986.8,3986.5,0.52677]
[1733536431949,0.8726,3986.9,3986.5,0.52677]
[1733536432466,0.02839329,3986.8,3986.5,0.52677]
[1733536432820,0.02839329,3986.8,3986.0,0.52683]
[1733536433158,0.02839329,3986.8,3986.4,0.52678]
[1733536433317,8.96839329,3986.8,3985.7,0.9212]
[1733536433655,0.98409933,3986.7,3986.0,0.52684]
[1733536433958,0.02839329,3986.6,3986.0,0.52684]
[1733536434454,0.02839329,3986.6,3985.7,0.9212]
[1733536434657,0.02839329,3986.6,3986.2,0.52681]
[1733536435718,0.02839329,3986.6,3985.8,0.52687]
[1733536435719,0.02839329,3986.6,3986.3,0.5268]
[1733536436031,8.96839329,3986.6,3986.5,0.52677]
[1733536436239,8.94,3986.6,3986.5,0.52677]
[1733536436557,8.94,3986.6,3986.1,0.52682]
[1733536436558,0.98126,3986.6,3985.8,0.52685]
[1733536436727,0.90099329,3986.5,3985.0,1.9212]
[1733536437118,0.90099329,3986.5,3985.5,0.5269]
[1733536437729,0.8726,3986.5,3985.7,0.52688]
[1733536438055,0.90099329,3986.5,3985.7,0.52688]
[1733536438354,0.18822533,3986.4,3985.7,0.52688]
[1733536438556,0.02839329,3986.3,3985.7,0.52688]
[1733536440131,8.94,3986.2,3985.4,0.52692]
[1733536440423,8.94,3986.2,3985.3,0.52693]
[1733536440424,0.8726,3986.0,3985.3,0.52693]
[1733536440570,0.8726,3986.0,3985.4,0.52692]
[1733536440771,1.85669933,3986.0,3985.5,0.5269]
[1733536441436,0.02839329,3985.9,3985.1,0.52696]
[1733536441672,0.02839329,3985.9,3985.4,0.52692]
[1733536441977,0.02839329,3985.9,3985.5,0.5269]
[1733536442137,1.85669933,3986.0,3985.5,0.5269]
[1733536442972,1.85669933,3986.0,3985.3,0.52692]
[1733536443269,1.85669933,3986.0,3985.0,1.9212]
[1733536443270,8.94,3985.8,3985.0,1.9212]
[1733536443433,0.02839329,3985.7,3985.2,0.52694]
[1733536443837,8.94,3985.8,3985.2,0.52694]
[1733536444342,0.02839329,3985.7,3985.2,0.52694]
[1733536444646,8.94,3985.8,3985.0,1.0]
[1733536444872,0.98126,3985.7,3985.2,0.52694]
[1733536445851,0.02839329,3985.6,3985.0,6.0]
[1733536446040,0.02839329,3985.6,3985.0,6.52696]
[1733536447092,8.94,3985.4,3985.0,6.0]
[1733536447239,0.02839329,3985.3,3985.0,6.0]
[1733536447444,0.98409933,3985.2,3985.0,6.0]
[1733536448957,0.8726,3985.1,3985.0,6.0]
[1733536451153,0.98409933,3985.2,3985.0,6.0]
[1733536451357,8.94,3985.4,3985.0,6.0]
[1733536451960,8.94,3985.4,3985.2,0.52694]
[1733536452259,0.8914,3985.5,3985.0,6.0]
[1733536455091,8.94,3985.4,3985.0,6.0]
[1733536457103,8.94,3985.4,3985.0,6.52697]
[1733536457269,8.94,3985.4,3985.0,6.0]
[1733536457607,8.94,3985.4,3985.1,0.52696]
[1733536458066,8.94,3985.7,3985.1,0.52696]
[1733536458265,8.94,3985.7,3985.1,1.40516]
[1733536458463,9.92314,3985.7,3985.1,0.8782]
[1733536459277,9.92314,3985.7,3985.1,1.40516]
[1733536459673,0.18822533,3986.4,3985.1,1.40516]
[1733536459674,0.8914,3986.1,3985.2,0.52694]
[1733536459918,0.8914,3986.1,3985.5,0.5269]
[1733536463380,0.8914,3986.1,3985.4,0.52692]
[1733536464180,8.94,3986.0,3985.4,0.52692]
[1733536464382,8.94,3986.0,3985.1,3.8782]
[1733536464599,8.94,3986.0,3985.1,5.445666]
[1733536464805,8.94,3986.7,3985.8,0.9003]
[1733536465123,8.94,3986.7,3986.2,0.52681]
[1733536466302,8.94,3986.7,3985.8,0.9003]
[1733536466303,0.02839329,3986.6,3986.0,0.52684]
[1733536466480,0.89683933,3986.5,3986.0,0.52684]
[1733536466683,0.02839329,3986.4,3986.0,0.52684]
[1733536466888,0.02839329,3986.6,3986.0,0.52684]
[1733536468610,8.94,3986.7,3986.0,0.52684]
[1733536469321,0.02839329,3986.6,3985.8,0.9003]
[1733536469527,0.89683933,3986.5,3985.8,1.42715]
[1733536469697,0.02839329,3986.4,3985.8,1.42715]
[1733536470095,0.02839329,3986.4,3985.8,0.9003]
[1733536470289,0.02839329,3986.4,3985.9,0.52685]
[1733536470617,0.02839329,3986.4,3985.8,0.9003]
[1733536470923,0.02839329,3986.4,3985.8,1.42716]
[1733536471095,0.02839329,3986.4,3985.9,0.52685]
[1733536472225,8.94,3986.6,3986.0,0.52684]
[1733536472389,0.02839329,3986.5,3986.0,0.52684]
[1733536474005,0.02839329,3986.5,3985.9,0.52685]
[1733536474234,0.02839329,3986.5,3985.8,0.9003]
[1733536474436,9.92366,3986.6,3985.8,0.9003]
[1733536476051,8.94,3986.5,3985.8,0.9003]
[1733536476353,0.992366,3986.4,3985.8,0.9003]
[1733536477549,8.94,3986.2,3985.2,0.931]
[1733536477752,0.90809329,3986.1,3985.2,1.45794]
[1733536478455,0.8797,3986.1,3985.2,0.931]
[1733536478613,8.96839329,3986.0,3984.9,0.931]
[1733536478814,8.94,3986.0,3984.9,1.45798]
[1733536479009,1.18596929,3985.9,3985.1,3.0]
[1733536479249,8.94,3985.6,3984.1,0.931]
[1733536479410,8.94,3985.6,3984.4,0.52705]
[1733536480036,8.94,3985.4,3984.4,0.52705]
[1733536480755,8.94,3985.4,3984.5,0.70271]
[1733536481046,8.94,3985.4,3984.6,0.7027]
[1733536481612,8.94,3985.4,3984.9,0.9098]
[1733536481824,8.94,3985.4,3985.1,0.70261]
[1733536482942,8.94,3985.4,3985.2,0.70259]
[1733536484227,8.94,3985.4,3985.2,0.70258]
[1733536484960,8.94,3985.4,3985.3,0.70258]
[1733536485124,8.94,3986.2,3985.4,0.9098]
[1733536485325,8.94,3986.2,3985.9,0.70247]
[1733536485525,8.94,3986.2,3986.1,0.70244]
[1733536485867,8.94,3986.7,3986.2,0.7024]
[1733536487924,0.02839329,3986.6,3986.2,0.7024]
[1733536488425,0.92523262,3986.6,3986.2,0.7024]
[1733536488660,0.92523262,3986.6,3986.1,0.9098]
[1733536488862,0.92523262,3986.6,3986.1,1.61224]
[1733536489534,0.02839329,3986.6,3986.1,1.61224]
[1733536490146,0.02839329,3986.6,3986.1,0.9098]
[1733536490472,8.94,3986.7,3986.3,0.70239]
[1733536490672,8.94,3987.0,3986.1,0.9098]
[1733536490886,8.94,3987.0,3986.5,0.70236]
[1733536491172,10.03669549,3987.0,3986.5,0.70236]
[1733536491475,8.94,3986.9,3986.5,0.70236]
[1733536491670,8.94,3986.9,3986.1,0.9098]
[1733536491671,8.94,3986.9,3986.6,0.70235]
[1733536492471,8.94,3987.0,3986.7,0.70231]
[1733536492647,8.94,3987.0,3986.9,0.7023]
[1733536492842,0.99327121,3987.1,3986.9,0.7023]
[1733536493048,0.99327121,3987.1,3986.9,0.85847]
[1733536494273,0.99327121,3987.1,3987.0,0.70228]
[1733536498741,0.99327121,3987.1,3986.8,0.8594]
[1733536498943,0.99327121,3987.1,3986.6,0.70234]
[1733536499170,0.02839329,3987.0,3986.6,0.70234]
[1733536499338,0.02839329,3987.0,3986.3,0.8594]
[1733536499693,0.22564974,3987.0,3986.4,0.70238]
[1733536500544,0.22564974,3987.0,3986.0,0.8594]
[1733536500687,0.19725645,3987.0,3986.0,0.8594]
[1733536501377,0.19725645,3987.0,3986.4,0.70238]
[1733536502992,0.19725645,3987.0,3986.5,0.70236]
[1733536503285,8.94,3986.9,3986.5,0.70236]
[1733536503452,9.95305277,3986.9,3986.5,0.70236]
[1733536504873,0.02839329,3986.8,3986.0,0.8594]
[1733536505192,0.9509,3986.7,3986.0,1.56185]
[1733536505546,0.02839329,3986.6,3986.0,0.8594]
[1733536505713,0.02839329,3986.6,3985.3,1.372828]
[1733536505714,8.96839329,3986.6,3985.7,1.5619]
[1733536506003,8.94,3986.4,3985.0,7.56203]
[1733536506166,0.97929329,3986.3,3985.0,7.56203]
[1733536506570,0.97929329,3986.3,3985.0,6.8594]
[1733536506765,1.75621,3985.9,3985.0,6.8594]
[1733536506969,0.9509,3985.6,3985.0,6.0]
[1733536507198,0.02839329,3985.5,3985.0,6.0]
[1733536507368,8.94,3985.2,3985.0,6.0]
[1733536515109,8.94,3985.5,3985.0,6.0]
[1733536516460,8.94,3986.2,3985.5,1.58293]
[1733536516609,1.01310329,3986.1,3985.5,1.58293]
[1733536517833,1.01310329,3986.1,3985.5,0.8804]
[1733536518653,1.01310329,3986.1,3985.5,1.58294]
[1733536519415,0.98471,3986.1,3985.7,0.7025]
[1733536519717,0.02839329,3986.0,3985.7,0.7025]
[1733536520138,0.98471,3986.1,3985.7,0.7025]
[1733536520340,0.02839329,3986.0,3985.7,0.7025]
[1733536520913,0.98471,3986.1,3985.7,0.7025]
[1733536521146,9.92471,3986.1,3985.7,0.7025]
[1733536521933,9.92471,3986.1,3985.5,0.8804]
[1733536521934,9.92471,3986.1,3985.5,1.58293]
[1733536522124,0.02839329,3986.0,3985.5,1.58293]
[1733536522325,9.92471,3986.1,3985.5,1.58293]
[1733536522326,8.94,3986.1,3985.5,1.58293]
[1733536522535,0.02839329,3986.0,3985.5,0.8804]
[1733536524174,8.96839329,3986.0,3985.4,0.70255]
[1733536524389,8.94,3986.0,3985.4,0.70255]
[1733536524673,0.02839329,3985.9,3985.4,0.70255]
[1733536524993,0.02839329,3985.9,3985.1,4.583]
[1733536527189,9.92471,3986.0,3985.0,6.0]
[1733536527190,8.94,3985.7,3985.0,6.0]
[1733536530283,8.94,3985.7,3985.0,6.70262]
[1733536530485,8.94,3985.7,3985.0,6.758302]
[1733536530736,8.94,3985.7,3985.3,0.70257]
[1733536531039,8.94,3985.7,3985.4,0.70256]
[1733536533033,8.94,3985.7,3985.6,1.56822]
[1733536533238,8.94,3986.4,3985.6,1.56822]
[1733536533409,9.36964093,3986.4,3985.6,1.56822]
[1733536534817,9.36964093,3986.4,3985.6,0.8657]
[1733536535019,8.94,3986.4,3985.7,0.7025]
[1733536535661,8.94,3986.4,3985.6,0.8657]
[1733536535823,0.02839329,3986.3,3985.6,0.8657]
[1733536536026,0.8887,3986.0,3985.0,6.0]
[1733536536226,0.8887,3985.7,3985.0,6.0]
[1733536537466,8.94,3985.6,3985.0,6.0]
[1733536539178,8.94,3985.6,3985.0,6.70263]
[1733536539346,8.94,3985.6,3985.1,1.56831]
[1733536539745,8.94,3985.6,3985.2,0.70259]